bitfinex-derivatives/quotes_BTCF0:USTF0_20250724
["timestamp","ask_amount","ask_price","bid_price","bid_amount"]
[1753347175734,0.005,118850.0,118840.0,1.88894726]
[1753347177440,0.005,118850.0,118840.0,1.46840644]
[1753347177641,0.005,118850.0,118840.0,1.88894726]
[1753347177837,0.005,118850.0,118840.0,1.81382685]
[1753347178137,0.005,118850.0,118840.0,1.88894726]
[1753347178432,0.005,118850.0,118840.0,1.29478726]
[1753347178736,0.005,118850.0,118840.0,1.8887084]
[1753347178937,0.005,118850.0,118840.0,1.81358799]
[1753347179138,0.005,118850.0,118840.0,1.74870069]
[1753347179938,0.003,118850.0,118840.0,1.74870069]
[1753347180334,0.003,118850.0,118840.0,1.15478069]
[1753347180535,0.003,118850.0,118840.0,1.673354]
[1753347180939,0.002,118850.0,118840.0,1.673354]
[1753347181440,0.002,118850.0,118840.0,1.95366083]
[1753347182240,0.002,118850.0,118840.0,1.673354]
[1753347182539,0.002,118850.0,118840.0,2.02898816]
[1753347182840,0.002,118850.0,118840.0,2.0289842]
[1753347183239,0.002,118850.0,118840.0,1.74867737]
[1753347183634,0.002,118850.0,118840.0,1.99587669]
[1753347183835,0.06784795,118860.0,118850.0,0.1681896]
[1753347184036,1.14711443,118880.0,118870.0,0.2724613]
[1753347184232,0.71044443,118880.0,118870.0,0.4306713]
[1753347185744,0.71544443,118880.0,118870.0,0.4306713]
[1753347186143,0.71944443,118880.0,118870.0,0.4306713]
[1753347187838,0.06455,118880.0,118870.0,0.4306713]
[1753347188039,0.27099,118880.0,118870.0,1.07177813]
[1753347188242,0.27099,118880.0,118870.0,0.7914713]
[1753347188441,0.55129683,118880.0,118870.0,0.7914713]
[1753347191447,0.71944403,118880.0,118870.0,0.7914713]
[1753347191947,0.55129683,118880.0,118870.0,0.7914713]
[1753347192747,0.61754868,118880.0,118870.0,0.7914713]
[1753347193046,0.78569588,118880.0,118870.0,0.7914713]
[1753347193244,0.80551153,118880.0,118870.0,0.7914713]
[1753347193548,0.80551153,118880.0,118870.0,0.80381166]
[1753347194847,0.5252047,118880.0,118870.0,0.80381166]
[1753347195047,0.80551153,118880.0,118870.0,0.80381166]
[1753347195249,0.63736433,118880.0,118870.0,0.80381166]
[1753347195452,0.80551143,118880.0,118870.0,0.80381166]
[1753347197247,0.63736433,118880.0,118870.0,0.80381166]
[1753347197944,0.3570575,118880.0,118870.0,0.80381166]
[1753347198144,0.63736433,118880.0,118870.0,0.80381166]
[1753347198652,0.3570575,118880.0,118870.0,0.80381166]
[1753347198853,0.63736433,118880.0,118870.0,0.80381479]
[1753347199056,0.80551123,118880.0,118870.0,0.7914713]
[1753347199940,0.80551123,118880.0,118870.0,0.80381192]
[1753347201152,0.9456528,118880.0,118870.0,1.01403612]
[1753347201453,0.9456528,118880.0,118870.0,1.01402833]
[1753347201655,0.9456528,118880.0,118870.0,1.0016955]
[1753347201851,0.9456528,118880.0,118870.0,0.80379128]
[1753347202155,1.1186844,118880.0,118870.0,1.01401548]
[1753347202457,1.5391328,118880.0,118870.0,1.0016955]
[1753347203457,1.51931715,118880.0,118870.0,1.01401202]
[1753347203657,1.51931715,118880.0,118870.0,1.07424205]
[1753347204157,1.51931715,118880.0,118870.0,1.01401202]
[1753347204955,1.51931715,118880.0,118870.0,0.80378752]
[1753347205157,1.51931715,118880.0,118870.0,0.01231652]
[1753347205459,1.51931715,118880.0,118870.0,0.18047752]
[1753347206058,1.09886875,118880.0,118870.0,0.18047752]
[1753347206259,1.51931715,118880.0,118870.0,0.18047752]
[1753347206460,1.09886875,118880.0,118870.0,0.18047752]
[1753347206654,1.51931715,118880.0,118870.0,0.18047752]
[1753347207755,1.51931715,118880.0,118870.0,0.168161]
[1753347209462,0.430151,118870.0,118860.0,0.95084814]
[1753347209664,0.8505994,118870.0,118860.0,0.95084814]
[1753347209964,0.430151,118870.0,118860.0,0.95084814]
[1753347210164,0.6403752,118870.0,118860.0,0.95084814]
[1753347210765,0.6423752,118870.0,118860.0,0.95084814]
[1753347211965,0.6453752,118870.0,118860.0,0.95084814]
[1753347212168,0.435151,118870.0,118860.0,0.95084814]
[1753347212465,0.6453752,118870.0,118860.0,0.95084814]
[1753347212765,0.6453752,118870.0,118860.0,0.8755606]
[1753347213168,0.8555994,118870.0,118860.0,0.26251]
[1753347213363,0.6453752,118870.0,118860.0,0.4306851]
[1753347214065,0.435151,118870.0,118860.0,0.3325351]
[1753347214266,0.6453752,118870.0,118860.0,0.4253951]
[1753347216165,0.6453752,118870.0,118860.0,0.79852156]
[1753347216570,0.8555994,118870.0,118860.0,0.43772156]
[1753347216956,0.435151,118870.0,118860.0,0.43772156]
[1753347217162,0.6453752,118870.0,118860.0,0.43772156]
[1753347217361,0.6453752,118870.0,118860.0,0.43772116]
[1753347218668,0.65362489,118870.0,118860.0,0.43772116]
[1753347219269,0.435151,118870.0,118860.0,0.43772116]
[1753347219570,0.6453752,118870.0,118860.0,0.43772116]
[1753347221569,1.2386552,118870.0,118860.0,0.43772116]
[1753347222674,1.2386552,118870.0,118860.0,0.4253947]
[1753347223973,1.028431,118870.0,118860.0,0.4253947]
[1753347224172,1.2386552,118870.0,118860.0,0.4253947]
[1753347227570,1.4488794,118870.0,118860.0,0.4253947]
[1753347227766,1.2386552,118870.0,118860.0,0.4253947]
[1753347228174,1.4488794,118870.0,118860.0,0.4253947]
[1753347228475,1.2386552,118870.0,118860.0,0.4253947]
[1753347228673,1.028431,118870.0,118860.0,0.4253947]
[1753347228971,1.2386552,118870.0,118860.0,0.4253947]
[1753347231477,1.2386552,118870.0,118860.0,0.43772882]
[1753347232081,1.2386552,118870.0,118860.0,0.4253947]
[1753347232377,0.3895544,118860.0,118850.0,0.72638584]
[1753347232572,0.8422828,118860.0,118850.0,0.6043683]
[1753347232768,0.4218344,118860.0,118850.0,0.07539]
[1753347232973,0.4218344,118860.0,118850.0,0.39757614]
[1753347232974,0.8422828,118860.0,118850.0,0.39757614]
[1753347233168,0.8422828,118860.0,118850.0,0.22938754]
[1753347233575,0.1681886,118850.0,118840.0,0.79469914]
[1753347233768,0.1681886,118850.0,118840.0,0.85125024]
[1753347233769,1.2252328,118850.0,118840.0,0.85125024]
[1753347233971,1.2252328,118850.0,118840.0,0.68304754]
[1753347234169,1.2252328,118850.0,118840.0,0.85125024]
[1753347234579,1.2252328,118850.0,118840.0,0.68304754]
[1753347234781,1.2252328,118850.0,118840.0,0.60776]
[1753347235681,1.2272328,118850.0,118840.0,0.3608]
[1753347235875,0.2721027,118840.0,118830.0,1.04724574]
[1753347236076,0.6320869,118840.0,118830.0,1.10353574]
[1753347236276,0.6320869,118840.0,118830.0,1.0282482]
[1753347236878,0.6320869,118840.0,118830.0,0.818024]
[1753347237080,0.6320869,118840.0,118830.0,1.0282482]
[1753347237281,0.8423111,118840.0,118830.0,0.68302111]
[1753347237477,0.1682169,118830.0,118820.0,0.77950765]
[1753347237673,1.2253011,118830.0,118820.0,0.88139355]
[1753347237878,1.2253011,118830.0,118820.0,0.71316255]
[1753347238178,1.2253011,118830.0,118820.0,1.09161775]
[1753347238687,1.2253011,118830.0,118820.0,1.09361775]
[1753347239184,1.2253011,118830.0,118820.0,1.09461775]
[1753347240288,1.2253011,118830.0,118820.0,0.88439355]
[1753347240488,1.2253011,118830.0,118820.0,1.09461775]
[1753347240690,1.2253411,118830.0,118820.0,1.09461775]
[1753347241491,0.6321011,118830.0,118820.0,1.09461775]
[1753347241688,1.2253411,118830.0,118820.0,1.09461775]
[1753347242086,1.0151169,118830.0,118820.0,1.09461775]
[1753347242289,1.2253411,118830.0,118820.0,0.9892152]
[1753347242582,1.2253411,118830.0,118820.0,0.778991]
[1753347242790,1.0151169,118830.0,118820.0,0.9892152]
[1753347243090,1.0151169,118830.0,118820.0,0.778991]
[1753347243295,1.2253411,118830.0,118820.0,0.9892152]
[1753347243692,1.1785911,118830.0,118820.0,0.9892152]
[1753347244290,1.2266411,118830.0,118820.0,0.9892152]
[1753347245587,1.2266411,118830.0,118820.0,0.778991]
[1753347245792,1.2266411,118830.0,118820.0,0.9892152]
[1753347246787,1.0164169,118830.0,118820.0,0.9892152]
[1753347246987,1.2266411,118830.0,118820.0,0.9892152]
[1753347248089,1.2266411,118830.0,118820.0,0.778991]
[1753347248296,1.2266811,118830.0,118820.0,0.9892152]
[1753347248493,1.1786311,118830.0,118820.0,0.9892152]
[1753347248995,1.2266811,118830.0,118820.0,0.9892152]
[1753347249797,0.6334011,118830.0,118820.0,0.9892152]
[1753347249996,1.2266811,118830.0,118820.0,0.9892152]
[1753347253496,1.2266811,118830.0,118820.0,1.09461775]
[1753347254401,0.6334011,118830.0,118820.0,1.09461775]
[1753347254603,1.2266811,118830.0,118820.0,1.09461775]
[1753347257504,0.6334011,118830.0,118820.0,1.09461775]
[1753347257704,1.2266811,118830.0,118820.0,1.09461775]
[1753347258606,1.2266811,118830.0,118820.0,0.88439355]
[1753347258802,1.2266811,118830.0,118820.0,1.09461775]
[1753347259501,1.2266811,118830.0,118820.0,0.9892152]
[1753347260193,1.2266811,118830.0,118820.0,1.09463518]
[1753347262702,0.25496,118830.0,118820.0,1.30485938]
[1753347262903,0.25005,118850.0,118840.0,0.5020382]
[1753347263099,0.4122242,118850.0,118840.0,1.19045181]
[1753347263803,0.4602742,118850.0,118840.0,1.19045181]
[1753347264003,0.6284625,118850.0,118840.0,1.19045181]
[1753347264604,1.2217025,118850.0,118840.0,1.19045181]
[1753347265609,1.2227025,118850.0,118840.0,0.93817821]
[1753347265809,1.2227025,118850.0,118840.0,1.14840241]
[1753347266210,1.2237025,118850.0,118840.0,1.14840241]
[1753347267399,1.2237025,118850.0,118840.0,0.8628382]
[1753347267609,1.2237025,118850.0,118840.0,1.14838924]
[1753347269611,1.2237025,118850.0,118840.0,0.78758924]
[1753347269811,1.2237025,118850.0,118840.0,1.14838924]
[1753347270510,1.2237025,118850.0,118840.0,0.93816504]
[1753347270812,1.2237025,118850.0,118840.0,1.14838924]
[1753347271210,1.2237025,118850.0,118840.0,0.78758924]
[1753347271410,1.2237025,118850.0,118840.0,0.93816504]
[1753347271614,1.2237025,118850.0,118840.0,1.14838924]
[1753347272013,1.0134783,118850.0,118840.0,1.14838924]
[1753347272316,1.2237025,118850.0,118840.0,1.14838924]
[1753347272516,1.2237025,118850.0,118840.0,0.93816504]
[1753347272709,1.2237025,118850.0,118840.0,1.14838924]
[1753347272911,1.2237025,118850.0,118840.0,0.93816504]
[1753347273114,1.2237025,118850.0,118840.0,1.14838924]
[1753347273615,1.2237025,118850.0,118840.0,1.0730624]
[1753347273910,1.2237025,118850.0,118840.0,0.82079]
[1753347274207,1.2237025,118850.0,118840.0,0.07530897]
[1753347274208,1.7947267,118850.0,118840.0,0.07530897]
[1753347274606,0.4191134,118840.0,118830.0,0.93992107]
[1753347274810,1.2003618,118840.0,118830.0,0.2515]
[1753347275018,1.2003618,118840.0,118830.0,0.4197176]
[1753347275314,1.2003618,118840.0,118830.0,0.46933243]
[1753347275615,1.2003618,118840.0,118830.0,0.3638776]
[1753347276606,1.2003618,118840.0,118830.0,0.3169276]
[1753347276812,1.2003618,118840.0,118830.0,0.1682176]
[1753347277012,0.4191276,118830.0,118820.0,0.93998366]
[1753347277211,1.29267458,118830.0,118820.0,0.93998366]
[1753347277514,1.29267458,118830.0,118820.0,0.07534716]
[1753347277708,0.2665117,118820.0,118810.0,0.54160199]
[1753347277908,0.69968868,118820.0,118810.0,0.5290459]
[1753347278105,0.69968868,118820.0,118810.0,0.43611723]
[1753347278317,0.69968868,118820.0,118810.0,0.60436313]
[1753347278514,0.76554072,118820.0,118810.0,0.60436313]
[1753347279013,0.76554072,118820.0,118810.0,0.5320459]
[1753347279215,0.76554072,118820.0,118810.0,0.60734435]
[1753347279415,0.76554072,118820.0,118810.0,0.65522435]
[1753347279812,1.35858072,118820.0,118810.0,0.65522435]
[1753347280013,1.35858072,118820.0,118810.0,0.73286435]
[1753347280312,1.35858072,118820.0,118810.0,0.60734435]
[1753347280712,1.35858072,118820.0,118810.0,0.73286435]
[1753347282115,0.76554072,118820.0,118810.0,0.73286435]
[1753347282416,1.35854072,118820.0,118810.0,0.85884435]
[1753347282917,1.07799374,118820.0,118810.0,0.85884435]
[1753347283113,1.35854072,118820.0,118810.0,0.85884435]
[1753347284311,0.76554072,118820.0,118810.0,0.85884435]
[1753347284513,0.76554072,118820.0,118810.0,0.7835459]
[1753347284716,1.35854072,118820.0,118810.0,0.7835459]
[1753347285119,1.35854072,118820.0,118810.0,0.85877039]
[1753347287921,1.35854072,118820.0,118810.0,0.7835459]
[1753347290218,0.76554072,118820.0,118810.0,0.7835459]
[1753347290424,1.35850072,118820.0,118810.0,0.7835459]
[1753347290719,0.76554072,118820.0,118810.0,0.7835459]
[1753347290925,1.35850072,118820.0,118810.0,0.7835459]
[1753347291423,0.76554072,118820.0,118810.0,0.7835459]
[1753347292025,1.35850072,118820.0,118810.0,0.7835459]
[1753347292421,0.76554072,118820.0,118810.0,0.7835459]
[1753347292623,1.35850072,118820.0,118810.0,0.7835459]
[1753347297036,1.35842072,118820.0,118810.0,0.7835459]
[1753347298733,0.71988072,118820.0,118810.0,0.7835459]
[1753347298935,1.03221374,118820.0,118810.0,0.7835459]
[1753347299439,1.07787374,118820.0,118810.0,0.7835459]
[1753347299737,1.35842072,118820.0,118810.0,0.7835459]
[1753347299933,0.12361204,118820.0,118810.0,1.65697288]
[1753347300233,0.06585204,118820.0,118810.0,1.65697288]
[1753347300532,0.4191186,118840.0,118830.0,0.2690463]
[1753347300737,1.0119986,118840.0,118830.0,1.06106328]
[1753347301139,0.84379,118840.0,118830.0,1.06106328]
[1753347301534,0.84375,118840.0,118830.0,1.06106328]
[1753347301734,0.84375,118840.0,118830.0,0.7805163]
[1753347302036,0.84475,118840.0,118830.0,1.06106328]
[1753347302739,0.84475,118840.0,118830.0,0.7805163]
[1753347303140,1.011952,118840.0,118830.0,0.7805163]
[1753347305243,1.012952,118840.0,118830.0,0.7805163]
[1753347305942,1.011952,118840.0,118830.0,0.7805163]
[1753347307347,0.84375,118840.0,118830.0,0.7805163]
[1753347308450,0.79809,118840.0,118830.0,0.7805163]
[1753347308646,0.79809,118840.0,118830.0,0.85574079]
[1753347308847,0.74888,118840.0,118830.0,0.85574079]
[1753347309043,0.15604,118840.0,118830.0,1.44846079]
[1753347310149,0.15604,118840.0,118830.0,1.72900777]
[1753347310746,0.15604,118840.0,118830.0,1.44846079]
[1753347311446,1.21696008,118850.0,118840.0,0.413612]
[1753347311447,1.28268528,118850.0,118840.0,0.413612]
[1753347311648,1.11449698,118850.0,118840.0,0.774412]
[1753347311847,1.28268488,118850.0,118840.0,0.774412]
[1753347312037,1.11449698,118850.0,118840.0,0.774412]
[1753347312243,1.28268488,118850.0,118840.0,0.774412]
[1753347312643,1.28368488,118850.0,118840.0,0.774412]
[1753347312844,1.28468488,118850.0,118840.0,0.774412]
[1753347313746,1.64548488,118850.0,118840.0,0.168202]
[1753347314140,0.264492,118840.0,118830.0,0.6131088]
[1753347314443,0.4095262,118830.0,118820.0,0.53906649]
[1753347314750,1.28267318,118830.0,118820.0,0.415422]
[1753347314947,1.28267318,118830.0,118820.0,0.2472]
[1753347315343,1.28267318,118830.0,118820.0,0.32242449]
[1753347316049,1.28267318,118830.0,118820.0,0.32442449]
[1753347316647,1.28267318,118830.0,118820.0,0.07722449]
[1753347317249,1.28267318,118830.0,118820.0,0.002]
[1753347317449,1.28267318,118830.0,118820.0,0.07722449]
[1753347318052,1.0021262,118830.0,118820.0,0.07722449]
[1753347318352,1.28267318,118830.0,118820.0,0.002]
[1753347318553,1.28267318,118830.0,118820.0,0.07522449]
[1753347321455,0.3103003,118820.0,118810.0,0.68143449]
[1753347321652,0.69008728,118820.0,118810.0,0.62945449]
[1753347322449,1.05098498,118820.0,118800.0,0.10545483]
[1753347322757,1.05098498,118820.0,118780.0,0.04842]
[1753347322758,0.19923,118790.0,118780.0,0.04842]
[1753347322962,1.75759268,118790.0,118780.0,0.04842]
[1753347323258,1.75759268,118790.0,118780.0,0.15387483]
[1753347323861,1.39679268,118790.0,118780.0,0.32216193]
[1753347324556,1.39679268,118790.0,118780.0,0.37814193]
[1753347324757,0.76216148,118790.0,118780.0,0.81774193]
[1753347324958,1.35480148,118790.0,118780.0,0.52315193]
[1753347325153,1.35480148,118790.0,118780.0,0.51915193]
[1753347325354,1.0742545,118790.0,118780.0,0.52215193]
[1753347325554,1.35480148,118790.0,118780.0,0.88295193]
[1753347326964,1.35480148,118790.0,118780.0,0.88495193]
[1753347327264,1.35480148,118790.0,118780.0,0.7794971]
[1753347328861,1.0742545,118790.0,118780.0,0.7794971]
[1753347329165,1.35480148,118790.0,118780.0,0.7794971]
[1753347329459,0.2292,118800.0,118790.0,0.2344329]
[1753347329660,0.14986,118810.0,118800.0,0.4136687]
[1753347329866,0.26135043,118820.0,118810.0,0.4136545]
[1753347330160,0.92291083,118820.0,118810.0,0.7744545]
[1753347330365,0.72471043,118820.0,118810.0,0.7744545]
[1753347330864,0.35383083,118820.0,118810.0,0.7744545]
[1753347331360,0.77952043,118820.0,118810.0,0.7744545]
[1753347331961,0.65971043,118820.0,118810.0,1.05500148]
[1753347332166,0.06671043,118820.0,118810.0,1.05500148]
[1753347334166,0.06671043,118820.0,118810.0,1.05700148]
[1753347334469,0.06571043,118820.0,118810.0,1.06000148]
[1753347334664,0.2841866,118830.0,118820.0,0.2674704]
[1753347334865,0.11597,118830.0,118820.0,0.7759904]
[1753347335468,0.06459,118830.0,118820.0,0.7759904]
[1753347336169,0.06459,118830.0,118820.0,1.05653738]
[1753347336369,0.9542716,118840.0,118830.0,0.2674562]
[1753347336665,0.954262,118840.0,118830.0,0.7759762]
[1753347336868,0.7861,118840.0,118830.0,0.7759762]
[1753347337967,0.360942,118840.0,118830.0,0.7759762]
[1753347338165,0.954622,118840.0,118830.0,0.7759762]
[1753347338365,0.19274,118840.0,118830.0,0.7759762]
[1753347338570,0.78642,118840.0,118830.0,0.7759762]
[1753347339568,0.19274,118840.0,118830.0,0.7759762]
[1753347341371,0.06459,118840.0,118830.0,0.7759762]
[1753347342872,0.2327921,118840.0,118830.0,0.7759762]
[1753347343072,0.3133321,118840.0,118830.0,0.7759762]
[1753347343473,0.3609421,118840.0,118830.0,0.7759762]
[1753347343974,0.19274,118840.0,118830.0,0.7759762]
[1753347344171,0.3609421,118840.0,118830.0,0.7759762]
[1753347344373,0.9539821,118840.0,118830.0,0.7759762]
[1753347344673,1.23452908,118840.0,118830.0,0.7759762]
[1753347345469,0.64148908,118840.0,118830.0,0.7759762]
[1753347345671,1.23432908,118840.0,118830.0,0.7759762]
[1753347346077,1.26698908,118840.0,118830.0,0.7759762]
[1753347346477,1.54753606,118840.0,118830.0,0.7290362]
[1753347346872,1.26698908,118840.0,118830.0,0.7290362]
[1753347348878,1.26698908,118840.0,118830.0,0.7759762]
[1753347349778,0.9864421,118840.0,118830.0,0.7759762]
[1753347350077,1.26698908,118840.0,118830.0,0.7759762]
[1753347350977,1.26678908,118840.0,118830.0,0.7759762]
[1753347354080,1.23412908,118840.0,118830.0,0.7759762]
[1753347355580,0.9535821,118840.0,118830.0,0.7759762]
[1753347355784,1.23412908,118840.0,118830.0,0.7759762]
[1753347356680,0.64148908,118840.0,118830.0,0.7759762]
[1753347356881,1.23404908,118840.0,118830.0,0.7759762]
[1753347359583,0.9058921,118840.0,118830.0,1.05652318]
[1753347359784,0.9058921,118840.0,118830.0,0.7759762]
[1753347361077,1.23157908,118840.0,118830.0,0.7759762]
[1753347361281,1.26256908,118840.0,118830.0,0.7759762]
[1753347362085,0.9820221,118840.0,118830.0,0.7759762]
[1753347362279,1.26256908,118840.0,118830.0,0.7759762]
[1753347364391,1.25150045,118840.0,118830.0,0.7759762]
[1753347365688,0.65894045,118840.0,118830.0,0.7759762]
[1753347365886,1.25146045,118840.0,118830.0,0.7759762]
[1753347373389,1.23153908,118840.0,118830.0,0.7759762]
[1753347373590,1.23153908,118840.0,118830.0,0.83637722]
[1753347374688,1.26252908,118840.0,118830.0,0.83637722]
[1753347383196,1.26252908,118840.0,118830.0,0.84863166]
[1753347383494,1.26252908,118840.0,118830.0,0.78823064]
[1753347383495,1.28245776,118840.0,118830.0,0.78823064]
[1753347384396,1.26252908,118840.0,118830.0,0.78823064]
[1753347386096,1.23153908,118840.0,118830.0,0.78823064]
[1753347387196,1.23137908,118840.0,118830.0,0.78823234]
[1753347387588,0.9508321,118840.0,118830.0,0.78823234]
[1753347388401,0.9508321,118840.0,118830.0,1.06877932]
[1753347388888,0.9508321,118840.0,118830.0,1.05652318]
[1753347390198,0.9508321,118840.0,118830.0,0.7759762]
[1753347390389,1.23137908,118840.0,118830.0,0.7759762]
[1753347390595,0.9508321,118840.0,118830.0,0.7882342]
[1753347392301,0.9508321,118840.0,118830.0,0.7902342]
[1753347392496,0.3584721,118840.0,118830.0,0.7902342]
[1753347392703,1.23133908,118840.0,118830.0,0.7902342]
[1753347393199,0.9507921,118840.0,118830.0,0.7902342]
[1753347393403,0.3584721,118840.0,118830.0,0.7902342]
[1753347393607,0.9507921,118840.0,118830.0,0.7902342]
[1753347393795,0.9507921,118840.0,118830.0,0.7912342]
[1753347395001,0.9507921,118840.0,118830.0,0.7789762]
[1753347395195,0.9507921,118840.0,118830.0,0.83944035]
[1753347396600,1.23133908,118840.0,118830.0,0.83944035]
[1753347397200,1.23133908,118840.0,118830.0,0.85170615]
[1753347397499,1.23133908,118840.0,118830.0,0.83944035]
[1753347397702,1.23133908,118840.0,118830.0,0.7789762]
[1753347398698,0.01849224,118850.0,118840.0,0.401482]
[1753347398899,0.01849224,118850.0,118840.0,1.05509389]
[1753347399099,0.01849224,118850.0,118840.0,1.04282898]
[1753347399799,0.01849224,118850.0,118840.0,1.05132308]
[1753347400410,0.61069224,118850.0,118840.0,1.11169436]
[1753347400906,0.61069224,118850.0,118840.0,1.12395085]
[1753347401405,0.61069224,118850.0,118840.0,1.11169436]
[1753347401406,0.63945224,118850.0,118840.0,1.11169436]
[1753347401806,0.63945224,118850.0,118840.0,1.12394922]
[1753347402408,0.63945224,118850.0,118840.0,1.11169436]
[1753347402605,0.63941224,118850.0,118840.0,1.11169436]
[1753347402910,0.63941224,118850.0,118840.0,1.11469436]
[1753347403113,0.04725224,118850.0,118840.0,1.11469436]
[1753347403303,0.63937224,118850.0,118840.0,0.83414738]
[1753347403612,0.63937224,118850.0,118840.0,1.11869436]
[1753347404307,0.04725224,118850.0,118840.0,1.11869436]
[1753347404508,0.63937224,118850.0,118840.0,0.83814738]
[1753347404809,0.61061224,118850.0,118840.0,1.11869436]
[1753347405503,0.01849224,118850.0,118840.0,1.71081436]
[1753347409813,0.01849224,118850.0,118840.0,1.65044308]
[1753347410708,0.08196224,118850.0,118840.0,1.65044308]
[1753347413812,0.13417224,118850.0,118840.0,1.65044308]
[1753347415016,0.13417224,118850.0,118840.0,1.66269611]
[1753347416615,0.49120922,118850.0,118840.0,1.37345503]
[1753347416814,0.68874702,118850.0,118840.0,1.37341503]
[1753347418810,0.68874702,118850.0,118840.0,1.37241503]
[1753347419117,0.68874702,118850.0,118840.0,0.77953503]
[1753347419315,0.68874702,118850.0,118840.0,0.74480503]
[1753347419519,0.68874702,118850.0,118840.0,0.58983503]
[1753347420517,0.68874702,118850.0,118840.0,0.67043503]
[1753347420721,0.68874702,118850.0,118840.0,0.77953503]
[1753347420914,0.68874702,118850.0,118840.0,0.767282]
[1753347421309,0.69699276,118850.0,118840.0,0.767282]
[1753347422013,0.69699276,118850.0,118840.0,0.77951185]
[1753347423222,0.68874702,118850.0,118840.0,0.77951185]
[1753347423919,0.69697428,118850.0,118840.0,0.77951185]
[1753347424323,0.40820004,118850.0,118840.0,0.77951185]
[1753347424522,0.68874702,118850.0,118840.0,0.77951185]
[1753347425518,0.68874702,118850.0,118840.0,0.77451185]
[1753347427024,0.68874702,118850.0,118840.0,0.762282]
[1753347427226,0.69719938,118850.0,118840.0,0.762282]
[1753347428226,0.69719938,118850.0,118840.0,0.77452026]
[1753347428416,0.69719938,118850.0,118840.0,0.13641826]
[1753347428622,0.69719938,118850.0,118840.0,0.240482]
[1753347429226,0.83737066,118850.0,118840.0,0.290502]
[1753347429425,0.83737066,118850.0,118840.0,0.1223]
[1753347429726,0.83737066,118850.0,118840.0,0.290502]
[1753347430326,0.62701153,118850.0,118840.0,0.3027405]
[1753347430625,0.83737066,118850.0,118840.0,0.290502]
[1753347430822,0.62701153,118850.0,118840.0,0.395892]
[1753347431023,0.62701153,118850.0,118840.0,0.40813046]
[1753347431225,0.62701153,118850.0,118840.0,0.395892]
[1753347431822,0.40820004,118850.0,118840.0,0.395892]
[1753347432027,0.61855917,118850.0,118840.0,0.395892]
[1753347433130,0.69698491,118850.0,118840.0,0.395892]
[1753347433430,0.717209,118850.0,118840.0,0.395892]
[1753347433824,0.70887698,118850.0,118840.0,0.395892]
[1753347434129,0.70887698,118850.0,118840.0,0.40812964]
[1753347435733,0.70887698,118850.0,118840.0,0.395892]
[1753347436331,0.69720833,118850.0,118840.0,0.395892]
[1753347439537,0.69720833,118850.0,118830.0,0.2399862]
[1753347439538,0.385732,118840.0,118830.0,0.2399862]
[1753347439836,1.25782485,118840.0,118830.0,0.12179]
[1753347440236,1.25782485,118840.0,118830.0,0.16602]
[1753347440937,1.25782485,118840.0,118830.0,0.16702]
[1753347441139,1.25782485,118840.0,118830.0,0.3352362]
[1753347442639,1.25782485,118840.0,118830.0,0.3372362]
[1753347442940,0.66618485,118840.0,118830.0,0.3372362]
[1753347443142,1.25782485,118840.0,118830.0,0.3654262]
[1753347443439,1.25782485,118840.0,118830.0,0.003]
[1753347443440,1.42612885,118840.0,118830.0,0.003]
[1753347443840,1.42612885,118840.0,118830.0,0.04541]
[1753347444241,0.977372,118840.0,118830.0,0.2136262]
[1753347444443,1.25782485,118840.0,118830.0,0.3372362]
[1753347446046,0.385732,118840.0,118830.0,0.3372362]
[1753347446242,0.66618485,118840.0,118830.0,0.47368769]
[1753347446546,1.23006485,118840.0,118830.0,0.83448769]
[1753347446737,0.949612,118840.0,118830.0,0.83448769]
[1753347446943,1.32607123,118850.0,118840.0,0.395382]
[1753347447137,0.68883123,118850.0,118840.0,1.03663485]
[1753347449651,0.68883123,118850.0,118840.0,0.756182]
[1753347450650,0.68883123,118850.0,118840.0,1.03663485]
[1753347451250,0.47858883,118850.0,118840.0,1.03663485]
[1753347451451,0.59467663,118850.0,118840.0,1.03663485]
[1753347451652,0.56493663,118850.0,118840.0,1.03663485]
[1753347452047,0.01849224,118850.0,118840.0,1.03663485]
[1753347452254,0.18668004,118850.0,118840.0,1.03663485]
[1753347452652,0.18668004,118850.0,118840.0,0.756182]
[1753347452854,0.18668004,118850.0,118840.0,1.03663485]
[1753347454247,0.18668004,118850.0,118840.0,0.756182]
[1753347454447,0.39986004,118850.0,118840.0,0.58798]
[1753347454648,0.68031289,118850.0,118840.0,0.756182]
[1753347456251,0.68031289,118850.0,118840.0,0.22718]
[1753347456449,0.68031289,118850.0,118840.0,0.395382]
[1753347456644,1.27179289,118850.0,118840.0,0.756182]
[1753347459054,1.27179289,118850.0,118840.0,0.58798]
[1753347459256,0.99134004,118850.0,118840.0,0.58798]
[1753347459457,1.27179289,118850.0,118840.0,0.58798]
[1753347459758,1.27179289,118850.0,118840.0,0.756182]
[1753347460352,1.27179289,118850.0,118840.0,0.58798]
[1753347462260,1.27179289,118850.0,118840.0,0.22718]
[1753347462455,1.27179289,118850.0,118840.0,0.07177]
[1753347463254,1.27179289,118850.0,118840.0,0.13429]
[1753347463461,1.27179289,118850.0,118840.0,0.2299]
[1753347464253,1.27179289,118850.0,118840.0,0.07177]
[1753347464760,1.27179289,118850.0,118840.0,0.04241]
[1753347467858,1.27179289,118850.0,118840.0,0.10293743]
[1753347468058,1.27179289,118850.0,118840.0,0.15441743]
[1753347468659,1.27175289,118850.0,118840.0,0.15441743]
[1753347469364,0.68031289,118850.0,118840.0,0.15441743]
[1753347469564,1.27175289,118850.0,118840.0,0.21147743]
[1753347469755,0.39986004,118850.0,118840.0,0.25560743]
[1753347470061,0.68031289,118850.0,118840.0,0.25560743]
[1753347470262,1.27171289,118850.0,118840.0,0.25560743]
[1753347470862,0.99126004,118850.0,118840.0,0.42380943]
[1753347471066,1.27171289,118850.0,118840.0,0.25560743]
[1753347472166,1.27171289,118850.0,118840.0,0.28889743]
[1753347473464,1.27171289,118850.0,118840.0,0.22837]
[1753347473663,0.99126004,118850.0,118840.0,0.22837]
[1753347473863,1.27171289,118850.0,118840.0,0.396572]
[1753347474665,1.27175289,118850.0,118840.0,0.396572]
[1753347483074,1.25326065,118850.0,118840.0,0.396572]
[1753347483280,1.24568286,118850.0,118840.0,0.396572]
[1753347483684,1.24568286,118850.0,118840.0,0.757372]
[1753347486784,0.01857221,118850.0,118840.0,1.03782485]
[1753347486979,0.01857221,118850.0,118840.0,1.79751285]
[1753347487185,0.01857221,118850.0,118840.0,1.93754084]
[1753347487686,0.01857221,118850.0,118840.0,1.76925284]
[1753347487986,0.01857221,118850.0,118840.0,1.76921284]
[1753347488688,0.01857221,118850.0,118840.0,1.17785284]
[1753347488890,0.01857221,118850.0,118840.0,1.76921284]
[1753347489290,0.01857221,118850.0,118840.0,1.62908152]
[1753347489590,0.01857221,118850.0,118840.0,1.63108152]
[1753347490291,0.01857221,118850.0,118840.0,1.63408152]
[1753347491388,0.01857221,118850.0,118840.0,1.70937301]